bitfinex-derivatives/quotes_BTCF0:USTF0_20251220
["timestamp","ask_amount","ask_price","bid_price","bid_amount"]
[1766249952705,0.02537567,88203.0,88185.0,0.0284]
[1766249952906,0.02537567,88202.0,88185.0,0.0284]
[1766249953105,0.02537567,88201.0,88185.0,0.0284]
[1766249953305,0.02537567,88200.0,88185.0,0.0284]
[1766249953503,0.01864,88204.0,88185.0,0.0284]
[1766249953714,0.02537575,88203.0,88185.0,0.0284]
[1766249953915,0.02537575,88202.0,88185.0,0.0284]
[1766249954110,0.02537575,88201.0,88185.0,0.0284]
[1766249954311,0.02537575,88200.0,88186.0,0.0113447]
[1766249954511,0.01864,88204.0,88186.0,0.0113447]
[1766249954712,0.02537586,88203.0,88186.0,0.0113447]
[1766249954911,0.02537586,88202.0,88186.0,0.0113447]
[1766249955112,0.02537586,88201.0,88186.0,0.0113447]
[1766249955425,0.02537586,88200.0,88186.0,0.0113447]
[1766249955616,0.01864,88204.0,88186.0,0.0113447]
[1766249955820,0.02537672,88203.0,88186.0,0.0113447]
[1766249956022,0.02537672,88202.0,88186.0,0.0113447]
[1766249956206,0.02537672,88201.0,88186.0,0.0113447]
[1766249956410,0.02537672,88200.0,88186.0,0.0113447]
[1766249956704,0.01864,88204.0,88186.0,0.0113447]
[1766249956906,0.0253764,88203.0,88186.0,0.0113447]
[1766249957111,0.0253764,88202.0,88186.0,0.0113447]
[1766249957308,0.0253764,88201.0,88186.0,0.0113447]
[1766249957511,0.0253764,88200.0,88186.0,0.0113447]
[1766249957710,0.01864,88204.0,88186.0,0.0113447]
[1766249957916,0.02537698,88203.0,88186.0,0.0113447]
[1766249958118,0.02537698,88202.0,88186.0,0.0113447]
[1766249958319,0.02537698,88201.0,88186.0,0.0113447]
[1766249958516,0.02537698,88200.0,88186.0,0.0113447]
[1766249958718,0.01864,88204.0,88186.0,0.0113447]
[1766249958917,0.02537699,88203.0,88186.0,0.0113447]
[1766249959118,0.02537699,88202.0,88186.0,0.0113447]
[1766249959420,0.02537699,88201.0,88190.0,0.22877528]
[1766249959620,0.02537699,88200.0,88190.0,0.22877528]
[1766249959819,0.01864,88204.0,88190.0,0.22877528]
[1766249960023,0.02537737,88203.0,88190.0,0.22877528]
[1766249960322,0.02537737,88202.0,88190.0,0.22877528]
[1766249960521,0.02537737,88201.0,88190.0,0.22877528]
[1766249960711,0.02537737,88200.0,88190.0,0.22877528]
[1766249960909,0.01864,88204.0,88190.0,0.22877528]
[1766249961114,0.02537745,88203.0,88190.0,0.22877528]
[1766249961310,0.02537745,88202.0,88190.0,0.22877528]
[1766249961515,0.02537745,88201.0,88190.0,0.22877528]
[1766249961710,0.02537745,88200.0,88190.0,0.22877528]
[1766249961915,0.01864,88204.0,88190.0,0.22877528]
[1766249962122,0.02537728,88203.0,88190.0,0.22877528]
[1766249962322,0.02537728,88202.0,88186.0,0.0113447]
[1766249962521,0.02537728,88201.0,88186.0,0.0113447]
[1766249962725,0.02537728,88200.0,88186.0,0.0113447]
[1766249963024,0.01864,88204.0,88186.0,0.0113447]
[1766249963225,0.0253822,88203.0,88186.0,0.0113447]
[1766249963427,0.0253822,88202.0,88186.0,0.0113447]
[1766249963724,0.0253822,88201.0,88186.0,0.0113447]
[1766249963925,0.0253822,88200.0,88186.0,0.0113447]
[1766249964126,0.01864,88204.0,88186.0,0.0113447]
[1766249964426,0.02538211,88203.0,88186.0,0.0113447]
[1766249964725,0.02538211,88202.0,88186.0,0.0113447]
[1766249965026,0.02538211,88201.0,88186.0,0.0113447]
[1766249965224,0.02538211,88200.0,88186.0,0.0113447]
[1766249965413,0.01864,88204.0,88186.0,0.0113447]
[1766249965617,0.02538222,88203.0,88186.0,0.0113447]
[1766249965812,0.02538222,88202.0,88186.0,0.0113447]
[1766249966017,0.02538222,88201.0,88186.0,0.0113447]
[1766249966212,0.02538222,88200.0,88186.0,0.0113447]
[1766249966414,0.01864,88204.0,88186.0,0.0113447]
[1766249966626,0.02538244,88203.0,88186.0,0.0113447]
[1766249966932,0.02538244,88202.0,88186.0,0.0113447]
[1766249967225,0.02538244,88201.0,88186.0,0.0113447]
[1766249967426,0.02538244,88200.0,88186.0,0.0113447]
[1766249967626,0.01864,88204.0,88186.0,0.0113447]
[1766249967829,0.02538263,88203.0,88186.0,0.0113447]
[1766249968029,0.02538263,88202.0,88186.0,0.0113447]
[1766249968226,0.02538263,88201.0,88186.0,0.0113447]
[1766249968426,0.02538263,88200.0,88186.0,0.0113447]
[1766249968730,0.01864,88204.0,88186.0,0.0113447]
[1766249968938,0.02538247,88203.0,88186.0,0.0113447]
[1766249969118,0.02538247,88202.0,88186.0,0.0113447]
[1766249969321,0.02538247,88201.0,88186.0,0.0113447]
[1766249969531,0.02538247,88200.0,88186.0,0.0113447]
[1766249969731,0.01864,88204.0,88186.0,0.0113447]
[1766249969932,0.02538257,88203.0,88186.0,0.0113447]
[1766249970133,0.02538257,88202.0,88186.0,0.0113447]
[1766249970333,0.02538257,88201.0,88186.0,0.0113447]
[1766249970539,0.02538257,88200.0,88186.0,0.0113447]
[1766249970742,0.01864,88204.0,88186.0,0.0113447]
[1766249970931,0.0253826,88203.0,88186.0,0.0113447]
[1766249971127,0.0253826,88202.0,88186.0,0.0113447]
[1766249971334,0.0253826,88201.0,88186.0,0.0113447]
[1766249971532,0.0253826,88200.0,88190.0,0.22877791]
[1766249971738,0.01864,88204.0,88190.0,0.22877791]
[1766249972035,0.02538266,88203.0,88190.0,0.22877791]
[1766249972334,0.02538266,88202.0,88190.0,0.22877791]
[1766249972634,0.02538266,88201.0,88190.0,0.22877791]
[1766249972831,0.02538266,88200.0,88190.0,0.22877791]
[1766249973036,0.02538266,88199.0,88190.0,0.22877791]
[1766249973245,0.01864,88204.0,88190.0,0.22877791]
[1766249973444,0.02538288,88203.0,88186.0,0.0113447]
[1766249973644,0.02538288,88202.0,88190.0,0.22877791]
[1766249973844,0.02538288,88201.0,88190.0,0.22877791]
[1766249974143,0.02538288,88200.0,88190.0,0.22877791]
[1766249974332,0.02538288,88199.0,88190.0,0.22877791]
[1766249974531,0.01864,88204.0,88190.0,0.22877791]
[1766249974734,0.02538323,88203.0,88190.0,0.22877791]
[1766249974940,0.02538323,88202.0,88190.0,0.22877791]
[1766249975141,0.02538323,88201.0,88190.0,0.22877791]
[1766249975342,0.02538323,88200.0,88190.0,0.22877791]
[1766249975647,0.02538323,88199.0,88190.0,0.22877791]
[1766249975849,0.01864,88204.0,88190.0,0.22877791]
[1766249976147,0.02538345,88203.0,88190.0,0.22877791]
[1766249976346,0.02538345,88202.0,88190.0,0.22877791]
[1766249976539,0.02538345,88201.0,88190.0,0.22877791]
[1766249976737,0.02538345,88200.0,88190.0,0.22877791]
[1766249976935,0.02538345,88199.0,88190.0,0.22877791]
[1766249977238,0.01864,88204.0,88190.0,0.22877791]
[1766249977438,0.02538364,88203.0,88190.0,0.22877791]
[1766249977633,0.01864,88204.0,88190.0,0.22877791]
[1766249977838,0.02538362,88203.0,88190.0,0.22877791]
[1766249978039,0.02538362,88202.0,88190.0,0.22877791]
[1766249978236,0.02538362,88201.0,88190.0,0.22877791]
[1766249978441,0.02538362,88200.0,88190.0,0.22877791]
[1766249978647,0.02538362,88199.0,88190.0,0.22877791]
[1766249978837,0.01864,88204.0,88190.0,0.22877791]
[1766249979037,0.02538361,88203.0,88190.0,0.22877791]
[1766249979239,0.02538361,88202.0,88190.0,0.22877791]
[1766249979442,0.02538361,88201.0,88190.0,0.22877791]
[1766249979651,0.02538361,88200.0,88190.0,0.22877791]
[1766249979839,0.02538361,88199.0,88190.0,0.22877791]
[1766249980142,0.01864,88204.0,88190.0,0.22877791]
[1766249980342,0.02538376,88203.0,88190.0,0.22877791]
[1766249980548,0.02538376,88202.0,88190.0,0.22877791]
[1766249980746,0.02538376,88201.0,88190.0,0.22877791]
[1766249980948,0.02538376,88200.0,88190.0,0.22877791]
[1766249981152,0.02538376,88199.0,88190.0,0.22877791]
[1766249981350,0.01864,88204.0,88190.0,0.22877791]
[1766249981650,0.02538379,88203.0,88190.0,0.22877791]
[1766249981846,0.02538379,88202.0,88190.0,0.22877791]
[1766249982042,0.02538379,88201.0,88190.0,0.22877791]
[1766249982242,0.02538379,88200.0,88190.0,0.22877791]
[1766249982450,0.02538379,88199.0,88190.0,0.22877791]
[1766249982748,0.01864,88204.0,88190.0,0.22877791]
[1766249982948,0.02538556,88203.0,88190.0,0.22877791]
[1766249983144,0.02538556,88202.0,88190.0,0.22877791]
[1766249983345,0.02538556,88201.0,88190.0,0.22877791]
[1766249983547,0.02538556,88200.0,88190.0,0.22877791]
[1766249983745,0.02538556,88199.0,88190.0,0.22877791]
[1766249983946,0.01864,88204.0,88190.0,0.22877791]
[1766249984246,0.02538549,88203.0,88190.0,0.22877791]
[1766249984446,0.02538549,88202.0,88190.0,0.22877791]
[1766249984647,0.02538549,88201.0,88190.0,0.22877791]
[1766249984850,0.02538549,88200.0,88190.0,0.22877791]
[1766249985045,0.02538549,88199.0,88190.0,0.22877791]
[1766249985246,0.01864,88204.0,88190.0,0.22877791]
[1766249985545,0.02538489,88203.0,88190.0,0.22877791]
[1766249985744,0.02538489,88202.0,88190.0,0.22877791]
[1766249986061,0.02538489,88201.0,88190.0,0.22877791]
[1766249986358,0.02538489,88200.0,88190.0,0.22877791]
[1766249986551,0.02538489,88199.0,88190.0,0.22877791]
[1766249986746,0.01864,88204.0,88190.0,0.22877791]
[1766249986947,0.02538493,88203.0,88190.0,0.22877791]
[1766249987161,0.02538493,88202.0,88190.0,0.22877791]
[1766249987455,0.02538493,88201.0,88190.0,0.22877791]
[1766249987754,0.02538493,88200.0,88190.0,0.22877791]
[1766249987953,0.01864,88204.0,88190.0,0.22877791]
[1766249988150,0.02538632,88203.0,88190.0,0.22877791]
[1766249988356,0.02538632,88202.0,88190.0,0.22877791]
[1766249988549,0.02538632,88201.0,88190.0,0.22877791]
[1766249988861,0.02538632,88200.0,88190.0,0.22877791]
[1766249989062,0.01864,88204.0,88190.0,0.22877791]
[1766249989262,0.02538699,88203.0,88190.0,0.22877791]
[1766249989448,0.02538699,88202.0,88190.0,0.22877791]
[1766249989650,0.02538699,88201.0,88190.0,0.22877791]
[1766249989850,0.02538699,88200.0,88190.0,0.22877791]
[1766249990151,0.02538699,88199.0,88190.0,0.22877791]
[1766249990466,0.01864,88204.0,88190.0,0.22877791]
[1766249990757,0.02538654,88203.0,88190.0,0.22877791]
[1766249990956,0.02538654,88202.0,88190.0,0.22877791]
[1766249991165,0.02538654,88201.0,88190.0,0.22877791]
[1766249991466,0.02538654,88200.0,88190.0,0.22877791]
[1766249991645,0.02538654,88199.0,88190.0,0.22877791]
[1766249991849,0.01864,88204.0,88190.0,0.22877791]
[1766249992049,0.02538666,88203.0,88190.0,0.22877791]
[1766249992262,0.02538666,88202.0,88190.0,0.22877791]
[1766249992556,0.02538666,88201.0,88190.0,0.22877791]
[1766249992756,0.02538666,88200.0,88190.0,0.22877791]
[1766249992958,0.02538666,88199.0,88190.0,0.22877791]
[1766249993268,0.01864,88204.0,88190.0,0.22877791]
[1766249993558,0.0254067,88203.0,88190.0,0.22877791]
[1766249993759,0.0254067,88202.0,88190.0,0.22877791]
[1766249993949,0.0254067,88201.0,88190.0,0.22877791]
[1766249994146,0.0254067,88200.0,88190.0,0.22877791]
[1766249994351,0.0254067,88199.0,88190.0,0.22877791]
[1766249994547,0.0254067,88198.0,88190.0,0.22877791]
[1766249994758,0.0254067,88197.0,88190.0,0.22877791]
[1766249994967,0.01864,88204.0,88190.0,0.22877791]
[1766249995260,0.02540671,88203.0,88190.0,0.22877791]
[1766249995456,0.02540671,88202.0,88190.0,0.22877791]
[1766249995655,0.02540671,88201.0,88190.0,0.22877791]
[1766249995956,0.02540671,88200.0,88190.0,0.22877791]
[1766249996155,0.02540671,88199.0,88190.0,0.22877791]
[1766249996358,0.02540671,88198.0,88190.0,0.22877791]
[1766249996557,0.02540671,88197.0,88190.0,0.22877791]
[1766249996758,0.01864,88204.0,88190.0,0.22877791]
[1766249996959,0.02540672,88203.0,88190.0,0.22877791]
[1766249997160,0.02540672,88202.0,88190.0,0.22877791]
[1766249997362,0.02540672,88201.0,88190.0,0.22877791]
[1766249997564,0.02540672,88200.0,88190.0,0.22877791]
[1766249997763,0.02540672,88199.0,88190.0,0.22877791]
[1766249997965,0.02540672,88198.0,88190.0,0.22877791]
[1766249998165,0.02540672,88197.0,88190.0,0.22877791]
[1766249998463,0.01864,88204.0,88189.0,0.02836]
[1766249998664,0.02540651,88203.0,88189.0,0.02836]
[1766249998961,0.02540651,88202.0,88190.0,0.22877791]
[1766249999264,0.02540651,88201.0,88190.0,0.22877791]
[1766249999566,0.02540651,88200.0,88190.0,0.22877791]
[1766249999762,0.02540651,88199.0,88190.0,0.22877791]
[1766249999963,0.02540651,88198.0,88190.0,0.22877791]
[1766250000261,0.01515581,88197.0,88189.0,0.02836]
[1766250000569,0.01864,88204.0,88189.0,0.02836]
[1766250001063,0.02836,88203.0,88190.0,0.24011625]
[1766250001258,0.22977204,88240.0,88189.0,0.02836]
[1766250001259,0.06095653,88215.0,88201.0,0.0113427]
[1766250001459,0.02836,88223.0,88206.0,0.0113421]
[1766250001674,0.06095653,88232.0,88213.0,0.22862425]
[1766250001860,0.01304,88226.0,88220.0,0.22862425]
[1766250002161,0.02836,88227.0,88211.0,0.0397015]
[1766250002565,0.02836,88227.0,88211.0,0.02836]
[1766250005366,0.0113396,88226.0,88211.0,0.02836]
[1766250005565,0.02836,88227.0,88211.0,0.02836]
[1766250005761,0.0396995,88227.0,88211.0,0.02836]
[1766250013073,0.02836,88227.0,88211.0,0.02836]
[1766250019085,0.0113396,88226.0,88211.0,0.02836]
[1766250024890,0.02836,88227.0,88211.0,0.02836]
[1766250033002,0.02836,88227.0,88212.0,0.0113414]
[1766250033599,0.00017005,88228.0,88212.0,0.0113414]
[1766250033799,0.01569005,88228.0,88212.0,0.0113414]
[1766250039909,0.0204985,88235.0,88218.0,0.22864835]
[1766250040105,0.0113387,88233.0,88211.0,0.10095851]
[1766250040408,0.011339,88231.0,88211.0,0.10095851]
[1766250040999,0.0113393,88228.0,88211.0,0.08961711]
[1766250041206,0.0113397,88225.0,88211.0,0.02836]
[1766250042611,0.0113393,88229.0,88211.0,0.02836]
[1766250047513,0.00010944,88230.0,88211.0,0.02836]
[1766250048312,0.00010944,88230.0,88212.0,0.0113413]
[1766250051320,0.01144854,88230.0,88212.0,0.0113413]
[1766250052018,0.0113395,88227.0,88211.0,0.02836]
[1766250053120,0.00010944,88230.0,88211.0,0.02836]
[1766250053516,0.01144854,88230.0,88211.0,0.02836]
[1766250053720,0.00010944,88230.0,88211.0,0.02836]
[1766250055025,0.00010944,88230.0,88215.0,0.0113409]
[1766250057627,0.00010944,88230.0,88211.0,0.0397014]
[1766250060723,0.00010944,88230.0,88211.0,0.02836]
[1766250060928,0.00010944,88230.0,88210.0,0.29007551]
[1766250060929,0.0113402,88222.0,88210.0,0.00017005]
[1766250061121,0.22864835,88220.0,88210.0,0.00013005]
[1766250061317,0.0113405,88219.0,88201.0,0.06125711]
[1766250061721,0.0113405,88219.0,88200.0,0.06125711]
[1766250062222,0.0113405,88219.0,88201.0,0.00017005]
[1766250063326,0.22864835,88220.0,88201.0,0.00017005]
[1766250063916,0.01134,88223.0,88201.0,0.00017005]
[1766250064120,0.02466357,88222.0,88201.0,0.00017005]
[1766250064319,0.01134,88223.0,88201.0,0.00017005]
[1766250069127,0.0113404,88220.0,88201.0,0.00017005]
[1766250079134,0.0026,88224.0,88201.0,0.00017005]
[1766250079331,0.0113405,88219.0,88201.0,0.00017005]
[1766250079532,0.0113405,88219.0,88201.0,0.01151285]
[1766250080041,0.0139399,88224.0,88201.0,0.01151285]
[1766250080240,0.02464817,88223.0,88204.0,0.0113424]
[1766250080442,0.0139399,88224.0,88204.0,0.0113424]
[1766250080839,0.0026,88224.0,88204.0,0.0113424]
[1766250081040,0.02836,88223.0,88210.0,0.22872003]
[1766250081246,0.02836,88223.0,88208.0,0.0113418]
[1766250081443,0.02836,88223.0,88210.0,0.22866173]
[1766250082043,0.02836,88223.0,88204.0,0.0113423]
[1766250084447,0.0113401,88222.0,88201.0,0.00017005]
[1766250084749,0.0113401,88222.0,88202.0,0.0113426]
[1766250089250,0.0113401,88222.0,88203.0,0.06125711]
[1766250089552,0.0113401,88222.0,88204.0,0.02836]
[1766250090051,0.0113409,88216.0,88202.0,0.06125711]
[1766250090953,0.22866173,88212.0,88201.0,0.06142716]
[1766250091145,0.22866173,88212.0,88178.0,0.14230809]
[1766250091146,0.0113418,88209.0,88188.0,0.0113444]
[1766250091349,0.02836,88208.0,88191.0,0.02836]
[1766250092051,0.02853005,88208.0,88192.0,0.0113439]
[1766250092552,0.02853005,88208.0,88195.0,0.0113435]
[1766250092756,0.02853005,88208.0,88198.0,0.24000483]
[1766250092958,0.01853005,88208.0,88198.0,0.24000483]
[1766250095254,0.02836,88216.0,88201.0,0.0113427]
[1766250095456,0.02836,88217.0,88206.0,0.22866173]
[1766250095750,0.02836,88217.0,88207.0,0.22866173]
[1766250095955,0.02836,88217.0,88201.0,0.0113427]
[1766250098752,5e-08,88218.0,88207.0,0.22866173]
[1766250099061,0.01552,88221.0,88207.0,0.22866173]
[1766250099364,0.02836,88225.0,88210.0,0.24000333]
[1766250099655,0.02836,88225.0,88210.0,0.26836333]
[1766250100154,0.00010944,88226.0,88215.0,0.22866173]
[1766250100363,0.00010944,88226.0,88216.0,0.22866173]
[1766250100658,0.00010944,88226.0,88213.0,0.0113412]
[1766250101251,0.00010944,88226.0,88216.0,0.22866173]
[1766250102664,0.00010944,88226.0,88214.0,0.02836]
[1766250104359,0.00010944,88226.0,88216.0,0.22866173]
[1766250104558,0.00010944,88226.0,88214.0,0.02836]
[1766250107462,0.00010944,88226.0,88216.0,0.22866173]
[1766250107664,0.00010944,88226.0,88214.0,0.02836]
[1766250108255,0.00010944,88226.0,88216.0,0.22866173]
[1766250109461,0.00010944,88226.0,88214.0,0.02836]
[1766250112765,0.00010944,88226.0,88214.0,0.06911332]
[1766250114268,0.01134,88223.0,88213.0,0.04075332]
[1766250114467,0.01134,88223.0,88211.0,0.04075332]
[1766250117367,0.0113404,88220.0,88211.0,0.04075332]
[1766250117871,0.0113404,88220.0,88210.0,0.04075332]
[1766250118268,0.0113404,88220.0,88211.0,0.04075332]
[1766250119070,0.0113404,88220.0,88210.0,0.04075332]
[1766250120867,0.23997535,88220.0,88210.0,0.04075332]
[1766250121068,0.23997535,88220.0,88209.0,0.00017005]
[1766250121069,0.23997535,88220.0,88209.0,0.03092337]
[1766250121369,0.23997535,88220.0,88205.0,0.06113608]
[1766250121568,0.26833535,88220.0,88204.0,0.06113608]
[1766250121769,0.26833535,88220.0,88203.0,0.06113608]
[1766250122168,0.26833535,88220.0,88203.0,0.06130613]
[1766250122369,0.26833535,88220.0,88204.0,0.06113608]
[1766250122978,0.0397004,88220.0,88204.0,0.06113608]
[1766250123874,0.02836,88220.0,88204.0,0.06113608]
[1766250125384,0.02836,88220.0,88205.0,0.06113608]
[1766250127487,0.02836,88220.0,88206.0,0.06113608]
[1766250128689,0.02836,88220.0,88207.0,0.06113608]
[1766250133484,0.02836,88220.0,88206.0,0.06113608]
[1766250140292,0.02836,88220.0,88207.0,0.06113608]
[1766250143295,0.02836,88220.0,88208.0,0.06113608]
[1766250143492,0.02836,88220.0,88209.0,0.06113608]
[1766250144894,0.02836,88227.0,88211.0,0.0113415]
[1766250145100,0.02836,88227.0,88212.0,0.06113608]
[1766250145599,0.011339,88231.0,88212.0,0.06113608]
[1766250145796,0.02836,88234.0,88212.0,0.06113608]
[1766250145997,0.00017005,88232.0,88213.0,0.06113608]
[1766250147989,0.00017005,88232.0,88212.0,0.06113608]
[1766250148903,0.011339,88231.0,88212.0,0.06113608]
[1766250149093,0.0113394,88228.0,88212.0,0.06113608]
[1766250149597,0.0113394,88228.0,88211.0,0.06113608]
[1766250151302,0.0113394,88228.0,88215.0,0.04081602]
[1766250153305,0.0113394,88228.0,88216.0,0.04081602]
[1766250153603,0.00017005,88232.0,88216.0,0.04081602]
[1766250153604,0.01150895,88232.0,88216.0,0.04081602]
[1766250153805,0.01150895,88232.0,88217.0,0.04081602]
[1766250154199,0.00017005,88232.0,88217.0,0.04081602]
[1766250155909,0.011339,88231.0,88217.0,0.04081602]
[1766250157313,0.00017005,88232.0,88217.0,0.04081602]
[1766250157705,0.00017005,88232.0,88218.0,0.04081602]
[1766250159010,0.00017005,88232.0,88217.0,0.04081602]
[1766250163813,0.01150885,88232.0,88217.0,0.04081602]
[1766250169221,0.01150885,88232.0,88218.0,0.04081602]
[1766250170414,0.0113392,88229.0,88217.0,0.04081602]
[1766250170915,0.00017005,88232.0,88217.0,0.04081602]
[1766250171313,0.011339,88231.0,88216.0,0.04081602]
[1766250171515,0.011339,88231.0,88217.0,0.04081602]
[1766250172717,0.011339,88231.0,88218.0,0.04081602]
[1766250175123,0.011339,88231.0,88219.0,0.04081602]
[1766250176223,0.00017005,88232.0,88218.0,0.04081602]
[1766250176522,0.01150885,88232.0,88218.0,0.04081602]
[1766250176730,0.01150885,88232.0,88219.0,0.04081602]
[1766250176917,0.01150885,88232.0,88218.0,0.04081602]
[1766250180624,0.0113392,88229.0,88218.0,0.04081602]
[1766250182224,0.00017005,88232.0,88218.0,0.04081602]
[1766250182425,0.0113389,88231.0,88218.0,0.04081602]
[1766250183726,0.0113389,88231.0,88216.0,0.04081602]
[1766250185321,0.0113389,88231.0,88215.0,0.04081602]
[1766250193546,0.0113389,88231.0,88218.0,0.04081602]
[1766250194934,0.00017005,88232.0,88218.0,0.04081602]
[1766250196742,0.01150885,88232.0,88218.0,0.04081602]
[1766250200844,0.0113392,88229.0,88218.0,0.04081602]
[1766250201247,0.0113392,88229.0,88217.0,0.04081602]
[1766250203752,0.0113392,88229.0,88218.0,0.04081602]
[1766250211351,0.00017005,88232.0,88218.0,0.04081602]
[1766250211550,0.011339,88231.0,88217.0,0.04081602]
[1766250211754,0.011339,88231.0,88218.0,0.04081602]
[1766250222360,0.00017005,88232.0,88218.0,0.04081602]
[1766250223563,0.00017005,88232.0,88216.0,0.04081602]
[1766250223756,0.01150885,88232.0,88216.0,0.04081602]
[1766250224456,0.01150885,88232.0,88215.0,0.04081602]
[1766250224763,0.0113392,88229.0,88215.0,0.04081602]
[1766250225448,0.0113396,88226.0,88214.0,0.04081602]
[1766250225662,0.0113403,88221.0,88207.0,0.08949608]
[1766250225851,0.0113403,88221.0,88207.0,0.02836]
[1766250226058,0.0113397,88226.0,88207.0,0.02836]
[1766250227866,0.0113397,88226.0,88205.0,0.06113608]
[1766250231266,0.0113397,88226.0,88204.0,0.06113608]
[1766250232365,0.01134,88223.0,88200.0,0.3181397]
[1766250232664,0.01134,88223.0,88202.0,0.02836]
[1766250233663,0.01134,88223.0,88200.0,0.22864362]
[1766250233664,0.01134,88223.0,88203.0,0.02853005]
[1766250233864,0.01134,88223.0,88203.0,0.00017005]
[1766250234162,0.01134,88223.0,88203.0,0.02853005]
[1766250234361,0.01134,88223.0,88203.0,0.00017005]
[1766250234559,0.01134,88223.0,88203.0,0.02853005]
[1766250234860,0.01134,88223.0,88203.0,0.00017005]
[1766250235051,0.01134,88223.0,88203.0,0.02853005]
[1766250235450,0.01134,88223.0,88203.0,0.00017005]
[1766250235659,0.02836,88222.0,88203.0,0.00017005]
[1766250235851,0.02836,88222.0,88203.0,0.08966613]
[1766250236266,0.02836,88222.0,88203.0,0.00017005]
[1766250236863,0.02836,88222.0,88203.0,0.02853005]
[1766250237465,0.22864362,88220.0,88203.0,0.02853005]
[1766250241168,0.22864362,88220.0,88203.0,0.00017005]
[1766250242461,0.02836,88222.0,88203.0,0.00017005]
[1766250242667,0.02836,88222.0,88210.0,0.22864362]
[1766250249268,0.00836,88222.0,88210.0,0.22864362]
[1766250249567,0.01164,88221.0,88210.0,0.22864362]
[1766250249771,0.01836,88222.0,88210.0,0.22864362]
[1766250251879,0.02836,88222.0,88210.0,0.22864362]
[1766250256274,0.01836,88222.0,88210.0,0.22864362]
[1766250256482,0.00836,88222.0,88210.0,0.22864362]
[1766250257683,0.00836,88222.0,88210.0,0.22866447]
[1766250258578,0.00836,88222.0,88210.0,0.25702447]
[1766250264594,0.02836,88224.0,88210.0,0.25702447]
[1766250264788,0.00017005,88232.0,88214.0,0.22866447]
[1766250264988,0.05257907,88231.0,88215.0,0.02836]
[1766250265288,0.01421907,88230.0,88215.0,0.02836]
[1766250266794,0.00836,88231.0,88215.0,0.02836]
[1766250266993,0.01150895,88232.0,88215.0,0.02836]
[1766250267195,0.02836,88231.0,88215.0,0.02836]
[1766250267395,0.02836,88230.0,88215.0,0.02836]
[1766250268595,0.01836,88230.0,88215.0,0.02836]
[1766250268799,0.02836,88230.0,88215.0,0.02836]
[1766250268998,0.00836,88230.0,88215.0,0.02836]
[1766250269997,0.02836,88231.0,88215.0,0.02836]
[1766250270383,0.01552,88235.0,88220.0,0.22862453]
[1766250270889,0.01552,88235.0,88216.0,0.0113408]
[1766250271484,0.01552,88235.0,88217.0,0.00017005]
[1766250271689,0.0113386,88234.0,88217.0,0.00017005]
[1766250276705,0.01552,88235.0,88217.0,0.00017005]
[1766250281306,0.0268584,88235.0,88217.0,0.00017005]
[1766250287010,0.01552,88235.0,88217.0,0.00017005]
[1766250295610,0.01552,88235.0,88218.0,0.0113406]
[1766250298015,0.01552,88235.0,88217.0,0.00017005]
[1766250301518,0.01552,88235.0,88220.0,0.22861581]
[1766250301714,1.44632,88252.0,88225.0,0.22861581]
[1766250301913,0.02836,88258.0,88240.0,0.22861581]
[1766250302119,0.05246471,88257.0,88235.0,0.02836]
[1766250302313,0.02836,88257.0,88236.0,0.0113383]
[1766250302510,0.02836,88257.0,88240.0,0.22861581]
[1766250304319,0.02836,88260.0,88240.0,0.23995361]
[1766250307324,0.02836,88260.0,88240.0,0.22861581]
[1766250308224,0.02836,88260.0,88241.0,0.02836]
[1766250312125,0.0396953,88260.0,88241.0,0.02836]
[1766250314729,0.0113353,88260.0,88241.0,0.02836]
[1766250314930,0.00972,88259.0,88241.0,0.02836]
[1766250316530,0.0210554,88259.0,88241.0,0.02836]
[1766250322439,0.00972,88259.0,88241.0,0.02836]
[1766250325135,0.00972,88259.0,88242.0,0.0113375]
[1766250326337,0.02836,88260.0,88245.0,0.0113371]
[1766250327035,0.02836,88260.0,88250.0,0.22861581]
[1766250329538,0.02836,88260.0,88250.0,0.22844084]
[1766250329936,0.02836,88260.0,88250.0,0.22843976]
[1766250331854,0.02836,88260.0,88244.0,0.04095451]
[1766250332156,0.02836,88260.0,88244.0,0.00017005]
[1766250333257,0.02836,88260.0,88250.0,0.22843976]
[1766250333959,0.011335,88262.0,88250.0,0.22843976]
[1766250334257,0.02772,88261.0,88244.0,0.00017005]
[1766250335257,0.02772,88261.0,88250.0,0.22843976]
[1766250335552,0.02772,88261.0,88244.0,0.00017005]
[1766250336855,0.02772,88261.0,88250.0,0.22843976]
[1766250338559,0.02772,88261.0,88244.0,0.00017005]
[1766250339059,0.0113344,88267.0,88244.0,0.00017005]
[1766250339356,0.02836,88266.0,88250.0,0.22843976]
[1766250340552,0.02836,88265.0,88250.0,0.22843976]
[1766250340754,0.02836,88264.0,88250.0,0.22843976]
[1766250344360,0.0396947,88264.0,88250.0,0.22843976]
[1766250352966,0.02429313,88263.0,88250.0,0.22843976]
[1766250353261,0.02429313,88262.0,88250.0,0.22843976]
[1766250353462,0.02429313,88261.0,88250.0,0.22843976]
[1766250353665,0.02429313,88260.0,88250.0,0.22843976]
[1766250353868,0.02429313,88259.0,88250.0,0.22843976]
[1766250354057,0.02429313,88258.0,88250.0,0.22843976]
[1766250354257,0.0396947,88264.0,88250.0,0.22843976]
[1766250354459,0.02429599,88263.0,88250.0,0.22843976]
[1766250354660,0.0396947,88264.0,88250.0,0.22843976]
[1766250354661,0.02429599,88262.0,88250.0,0.22843976]
[1766250354859,0.02429599,88261.0,88250.0,0.22843976]
[1766250355060,0.02429599,88260.0,88250.0,0.22843976]
[1766250355264,0.02429599,88259.0,88250.0,0.22843976]
[1766250355566,0.02429599,88258.0,88250.0,0.22843976]
[1766250355767,0.02836,88260.0,88250.0,0.22843976]
[1766250355967,0.02429797,88259.0,88246.0,0.02836]
[1766250356266,0.02429797,88258.0,88246.0,0.02836]
[1766250356460,0.02429797,88257.0,88246.0,0.02836]
[1766250356766,0.02836,88260.0,88248.0,0.22843976]
[1766250356966,0.02430211,88259.0,88248.0,0.22843976]
[1766250357168,0.02430211,88258.0,88248.0,0.22843976]
[1766250357358,0.02430211,88257.0,88248.0,0.22843976]
[1766250357558,0.02836,88260.0,88248.0,0.22843976]
[1766250357759,0.02430212,88259.0,88246.0,0.02836]
[1766250357964,0.02430212,88258.0,88246.0,0.02836]
[1766250358165,0.02430212,88257.0,88246.0,0.02836]
[1766250358366,0.02836,88260.0,88246.0,0.02836]
[1766250358564,0.02430215,88259.0,88246.0,0.02836]
[1766250358863,0.02430215,88258.0,88246.0,0.02836]
[1766250359161,0.02430215,88257.0,88246.0,0.02836]
[1766250359361,0.02836,88260.0,88247.0,0.22843976]
[1766250359554,0.02430219,88259.0,88247.0,0.22843976]
[1766250359754,0.02430219,88258.0,88247.0,0.22843976]
[1766250359972,0.02430219,88257.0,88248.0,0.22843976]